Cogmind - Beta 11.1 @@@ ROGUE MODE // 2022.07.09 @ 17:29:27 Player: tkc Result: Destroyed by G-47 Trooper with Particle Gun Performance ------------- Evolutions (2) 1000 Regions Visited (5) 1000 Robots Destroyed (153) 765 Value Destroyed (4413) 4413 Prototype IDs (7) 140 Alien Tech Used (0) 0 Bonus (890) 890 TOTAL SCORE: 8208 Bonus ------- High Alert Combat Kills 690 Entered Garrisons 200 Cogmind --------- Core Integrity 0/550 Matter 159/300 Energy 100/100 System Corruption 0% Temperature Cool (18) Movement Core (500) Ox9 Location -8/Garrison Parts ------- > --- POWER (1) -------- (None) > --- PROPULSION (3) --- (None) > --- UTILITY (5) ------ Medium Storage Unit Large Storage Unit Hacking Suite > --- WEAPON (2) ------- (None) > --- INVENTORY (15) --- Light Nuclear Core Light Nuclear Core Light Treads Advanced Treads Improved Titanium Leg Improved VTOL Module Improved VTOL Module Improved VTOL Module Weight Redist. System Improved Sensor Array Relay Coupler [NC] (24) Relay Coupler [Sentry] (20) Precision Grenade Launcher Improved Datajack Katana Peak State ------------ > --- POWER ------------ Light Ion Engine > --- PROPULSION ------- Improved Titanium Leg Improved Titanium Leg Compact Wheel > --- UTILITY ---------- Small Storage Unit Medium Storage Unit Large Storage Unit Core Shielding Hacking Suite > --- WEAPON ----------- Improved Medium Laser Precision Grenade Launcher > --- INVENTORY -------- Light Nuclear Core Light Nuclear Core Light Treads Advanced Treads Compact Wheel Improved VTOL Module Improved VTOL Module Improved VTOL Module Small Matter Pod Weight Redist. System Improved Sensor Array Improved Assault Rifle Missile Launcher Improved Datajack Heavy Flail [Rating: 29] Favorites ----------- Power Light Ion Engine Engine Light Ion Engine Propulsion Light Treads Treads Light Treads Leg Improved Titanium Leg Wheel Compact Wheel Flight Unit Flight Unit Utility Large Storage Unit Device Trap Scanner Storage Large Storage Unit Hackware Hacking Suite Protection Hardened Light Armor Plating Weapon Improved Assault Rifle Energy Gun Improved EM Shotgun Energy Cannon Advanced Beam Cannon Ballistic Gun Improved Assault Rifle Ballistic Cannon Improved Light Cannon Launcher Precision Grenade Launcher Impact Weapon Heavy Flail Slashing Weapon Katana Build | -11 -10 -9 -9 -8 -8 ------- Run | Scr Mat Mat Sto Mat Gar Slots Evolved 4 | . . 2 . 2 . Power . | . . . . . . Propulsion 1 | . . . . 1 . Utility 3 | . . 2 . 1 . Weapon . | . . . . . . Parts Attached 121 | 7 6 19 26 51 12 Power 18 | 1 1 3 6 7 . Engine 18 | 1 1 3 6 7 . Core . | . . . . . . Reactor . | . . . . . . Propulsion 33 | 2 1 5 7 15 3 Treads 17 | 1 1 4 4 7 . Leg 7 | . . . . 5 2 Wheel 7 | 1 . . 3 2 1 Hover . | . . . . . . Flight 2 | . . 1 . 1 . Utility 23 | 2 2 3 5 10 1 Device 2 | . . . . 2 . Storage 8 | 2 2 . . 3 1 Processor . | . . . . . . Hackware 1 | . . . . 1 . Protection 12 | . . 3 5 4 . Artifact . | . . . . . . Weapon 47 | 2 2 8 8 19 8 Energy Gun 15 | 2 . 5 2 4 2 Energy Cannon 1 | . . . 1 . . Ballistic Gun 14 | . . 3 5 5 1 Ballistic Cannon 2 | . 2 . . . . Launcher 8 | . . . . 4 4 Special Weapon . | . . . . . . Impact Weapon 5 | . . . . 5 . Slashing Weapon 2 | . . . . 1 1 Piercing Weapon . | . . . . . . Special Melee Weapon . | . . . . . . Unidentified Prototypes 7 | . . 1 4 2 . Parts Lost 38 | . 1 7 5 14 11 Power 6 | . 1 1 1 2 1 Propulsion 13 | . . 1 3 5 4 Utility 10 | . . 1 1 5 3 Weapon 9 | . . 4 . 2 3 Highest Loss Streak 8 | . 1 3 2 5 8 To Critical Strikes . | . . . . . . Average Slot Usage (%) 93 | . 99 90 96 93 82 Engine 9 | . 13 10 10 8 4 Treads 11 | . 14 19 11 8 . Leg 4 | . . . . 9 17 Wheel 7 | . 14 2 9 8 2 Storage 23 | . 27 22 22 24 24 Hackware 4 | . . . . 8 9 Protection 10 | . . 13 20 7 8 Energy Gun 6 | . 5 8 2 8 1 Ballistic Gun 8 | . . 8 18 5 6 Ballistic Cannon 3 | . 22 5 . . . Launcher 1 | . . . . 2 4 Naked Turns . | . . . . . . Heaviest Build 53 | 13 41 53 53 51 47 Greatest Support 52 | 20 20 44 44 42 52 Greatest Overweight (x) 10 | . 2 3 4 3 10 Average Overweight (x) 1 | . 1 1 2 1 1 Largest Inventory Capacity 15 | 8 15 15 15 15 15 Average Capacity 14 | 6 14 15 15 15 15 Most Carried 15 | 7 13 15 15 15 15 Average Carried 14 | 4 10 13 14 14 14 Final Capacity 15 | 8 15 15 15 15 15 Final Carried 15 | 7 13 15 15 15 15 Class Distribution -------------------- 60% | Mutant 39% | Scavenger-Mutant Dominant Class ---------------- Mutant | -10/Materials Mutant | -9/Materials Mutant | -9/Storage Scavenger-Mutant | -8/Materials Mutant | -8/Garrison Resources | -11 -10 -9 -9 -8 -8 ----------- Run | Scr Mat Mat Sto Mat Gar Matter Collected 2859 | 295 264 611 674 921 94 Remotely . | . . . . . . Salvage Created 5539 | 111 324 1156 1172 2534 242 Parts 345 | 3 40 70 79 146 7 Haulers Intercepted 12 | . 2 1 4 5 . Recyclers Shooed 6 | . . 1 2 3 . Parts Field Recycled . | . . . . . . Retrieved Matter . | . . . . . . Parts Self-Destructed . | . . . . . . Prevented . | . . . . . . Kills | -11 -10 -9 -9 -8 -8 ------- Run | Scr Mat Mat Sto Mat Gar Combat Hostiles Destroyed 106 | . 11 26 18 42 9 Guns 66 | . . 17 18 30 1 Cannons 19 | . 11 8 . . . AOE 20 | . . . . 12 8 Classes Destroyed 14 | 2 5 2 1 3 1 Worker 8 | 1 1 1 2 3 . Builder 5 | . 1 . . 4 . Tunneler 2 | . . . . 2 . Hauler 12 | . 2 1 4 5 . Recycler 8 | 1 1 . 3 3 . Mechanic 1 | . . . . 1 . Operator 3 | . . . 1 2 . Watcher 10 | . 2 1 2 5 . Swarmer 23 | . 8 . 6 9 . Grunt 52 | . 3 20 2 22 5 Brawler 1 | . . 1 . . . Duelist 2 | . . . . 2 . Sentry 26 | . . 5 10 9 2 Specialist 2 | . . . . . 2 Best Kill Streak 8 | 1 5 4 7 8 5 Combat Bots Only 6 | . 3 4 6 5 5 Max Kills in Single Turn 4 | 1 2 1 3 4 3 Gunslinging 1 | . . . 1 . . Exploded 3 | . . . . 2 3 Melee . | . . . . . . Uniques/NPCs Destroyed . | . . . . . . Combat | -11 -10 -9 -9 -8 -8 -------- Run | Scr Mat Mat Sto Mat Gar Damage Taken 6779 | 28 397 1510 912 2557 1375 Core 868 | 14 51 148 99 315 241 Absorbed by Shields . | . . . . . . Redirected to Shielding 154 | . . . . 113 41 Regen/Repaired (Parts) 298 | . . . 100 198 . Core Remaining (%) 68 | 94 74 . 38 . . Volleys Fired 381 | 9 39 99 78 138 18 Largest 2 | 2 2 2 2 2 2 Hottest 92 | 90 78 79 88 92 79 Shots Fired 685 | 12 76 183 155 234 25 Gun 526 | 12 2 128 149 220 15 Cannon 135 | . 74 55 6 . . Launcher 24 | . . . . 14 10 Special . | . . . . . . Kinetic 449 | . 74 114 138 110 13 Thermal 116 | 9 2 55 16 32 2 Explosive 24 | . . . . 14 10 Electromagnetic 96 | 3 . 14 1 78 . Robot Hit Streak 20 | 5 4 20 19 16 10 Robot Miss Streak 5 | 3 5 4 3 4 3 Penetration Max . | . . . . . . Secondary Targets 8 | . . 5 3 . . Max Gunslinging Chain 1 | . . 1 1 . . Shots Hit Robots 453 | 7 38 117 103 168 20 Core Hits 240 | 3 18 45 41 116 17 Critical Kills 2 | . . . 2 . . Critical Parts Destroyed 3 | . . . 2 1 . Critical Strikes 26 | 1 5 10 5 5 . Burn 13 | 1 . 7 1 4 . Destroy 5 | . . . 4 1 . Blast 8 | . 5 3 . . . Melee Attacks 21 | . . . . 15 6 Impact 15 | . . . . 15 . Slashing 6 | . . . . . 6 Piercing . | . . . . . . Sneak Attacks 3 | . . . . 3 . Combat Hostiles . | . . . . . . Follow-up Attacks . | . . . . . . Damage Inflicted 10171 | 117 872 1698 1736 4838 910 Guns 5461 | 90 13 1006 1441 2759 152 Cannons 1636 | . 836 692 108 . . Explosions 2815 | 27 . . 187 1843 758 Melee 236 | . . . . 236 . Ramming 23 | . 23 . . . . Kinetic 4408 | . 836 981 1318 1155 118 Thermal 1936 | 89 13 596 242 962 34 Explosive 2138 | . . . 156 1224 758 Electromagnetic 1430 | 28 . 121 20 1261 . Impact 236 | . . . . 236 . Slashing . | . . . . . . Piercing . | . . . . . . Highest Corruption 4 | . . 2 4 . . Average Corruption 2 | . . 2 3 . . Corruption Purged . | . . . . . . Corruption Blocked . | . . . . . . Effects 54 | . . 21 33 . . Message Errors 17 | . . 9 8 . . Matter Fused 14 | . . 7 7 . . Heat Flow Errors 7 | . . 2 5 . . Energy Discharges 2 | . . . 2 . . Data Loss (minor) 6 | . . 1 5 . . Data Loss (major) 1 | . . . 1 . . Misfires 3 | . . 1 2 . . Alerts 1 | . . 1 . . . Weapon Failures 3 | . . . 3 . . Overload Shots . | . . . . . . Overflow Damage 147 | . 18 . 74 55 . Projectiles 22 | . 18 . 4 . . Explosions 109 | . . . 70 39 . Melee 16 | . . . . 16 . Knockbacks 11 | . 7 3 . 1 . Impact 1 | . . . . 1 . Kinetic 9 | . 6 3 . . . Secondary 1 | . 1 . . . . Self-Inflicted Damage 475 | 29 11 . . 353 82 Shots 12 | 1 . . . 9 2 Rammed 2 | . 1 1 . . . Targets Rammed 2 | . 1 1 . . . Kicked . | . . . . . . Crushed . | . . . . . . Highest Temperature 522 | 102 90 522 252 265 15 Average Temperature 87 | 35 28 167 62 24 6 Received Heat Transfer 2697 | . 42 771 237 1098 549 Effects 17 | . . 17 . . . Shutdowns 6 | . . 6 . . . Energy Bleed 3 | . . 3 . . . Interference 5 | . . 5 . . . Short Circuit 1 | . . 1 . . . Damage (minor) 2 | . . 2 . . . Siege Activations . | . . . . . . Robots Corrupted . | . . . . . . Combat Hostiles . | . . . . . . Parts Fried 11 | . . 1 . 10 . Impact Corruptions 3 | . 1 . . 2 . Robots Melted 1 | . . 1 . . . Combat Hostiles 1 | . . 1 . . . Parts Melted 3 | . . 2 . 1 . Heat Transferred 4764 | 309 37 2072 605 1686 55 Parts Sabotaged . | . . . . . . Parts Stolen . | . . . . . . Parts Stripped . | . . . . . . Power Chain Reactions 8 | 1 . . 1 6 . Missiles Intercepted . | . . . . . . Alert | -11 -10 -9 -9 -8 -8 ------- Run | Scr Mat Mat Sto Mat Gar Peak Influence 927 | 10 291 477 494 923 927 Initial 578 | . 6 87 163 208 578 Average 437 | 3 101 298 329 599 739 Maximum Alert Level 3 | . 1 2 2 3 3 Low Security (%) 14 | 100 79 13 12 . . Level 1 47 | . 20 79 70 35 . Level 2 12 | . . 6 17 12 39 Level 3 25 | . . . . 51 60 Level 4 . | . . . . . . Level 5 . | . . . . . . High Security . | . . . . . . Max Security . | . . . . . . Squads Dispatched 16 | . 4 4 1 7 . Investigation 3 | . . 1 . 2 . Extermination . | . . . . . . Reinforcement 13 | . 4 3 1 5 . Assault . | . . . . . . Garrison . | . . . . . . Intercept . | . . . . . . Searches Triggered . | . . . . . . Construction Impeded 2 | . . . . 2 . Haulers Reinforced . | . . . . . . Active Scanning Responses . | . . . . . . Cargo Convoy Interrupts . | . . . . . . Stealth | -11 -10 -9 -9 -8 -8 --------- Run | Scr Mat Mat Sto Mat Gar Distress Signals 9 | . 2 3 2 2 . Communications Jammed . | . . . . . . Distress Signals . | . . . . . . Times Spotted 152 | . 19 36 29 56 12 Peak Tracking Total 7 | . 5 6 7 4 5 Tactical Retreats 10 | . . 1 3 5 1 Traps | -11 -10 -9 -9 -8 -8 ------- Run | Scr Mat Mat Sto Mat Gar Traps Triggered 9 | . . 2 3 2 2 Indirectly . | . . . . . . Trap Hack Attempts . | . . . . . . Triggered . | . . . . . . Disarmed . | . . . . . . Reprogrammed . | . . . . . . Reused . | . . . . . . Traps Extracted . | . . . . . . Installed . | . . . . . . Triggered . | . . . . . . Machines | -11 -10 -9 -9 -8 -8 ---------- Run | Scr Mat Mat Sto Mat Gar Machines Disabled 13 | . . 1 3 8 1 Max in Single Turn 2 | . . 1 2 2 1 Garrison Relay 1 | . . . . . 1 Machines Sabotaged . | . . . . . . Garrisons Compromised . | . . . . . . Overloaded Fab Kills . | . . . . . . Hacking | -11 -10 -9 -9 -8 -8 --------- Run | Scr Mat Mat Sto Mat Gar Machines Accessed 28 | . 2 4 10 12 . Terminals 22 | . 2 4 8 8 . Fabricators . | . . . . . . Repair Stations 4 | . . . 2 2 . Recycling Units . | . . . . . . Scanalyzers 1 | . . . . 1 . Garrison Access 1 | . . . . 1 . Total Hacks 66 | . 3 10 22 31 . Successful 42 | . 1 6 13 22 . Failed 24 | . 2 4 9 9 . Catastrophic 3 | . . . 2 1 . Database Lockouts . | . . . . . . Manual 36 | . 1 10 14 11 . Terminals 53 | . 3 10 18 22 . Fabricators . | . . . . . . Repair Stations 9 | . . . 4 5 . Recycling Units . | . . . . . . Scanalyzers 2 | . . . . 2 . Garrison Access 2 | . . . . 2 . Terminal Hacks 23 | . 1 3 7 12 . Robot Analysis 2 | . . 1 1 . . Open Door 2 | . . . 2 . . Branch Access Points 2 | . . 1 . 1 . Terminal Index 3 | . . 1 1 1 . Alert Level 4 | . . . 1 3 . Unreport Threat 2 | . . . . 2 . Locate Traps 1 | . . . . 1 . Hauler Manifests 1 | . 1 . . . . Registered Prototypes 1 | . . . 1 . . Zone Layout 5 | . . . 1 4 . Fabricator Hacks . | . . . . . . Repair Station Hacks 8 | . . . 4 4 . Scan Component 4 | . . . 2 2 . Repair 4 | . . . 2 2 . Recycling Unit Hacks . | . . . . . . Scanalyzer 2 | . . . . 2 . Insert Component 1 | . . . . 1 . Analyze 1 | . . . . 1 . Garrison Access Hacks 1 | . . . . 1 . Unlock Access 1 | . . . . 1 . Unauthorized Hacks 8 | . . 3 2 3 . Terminals 8 | . . 3 2 3 . Track 1 | . . . . 1 . Botnet 4 | . . 2 1 1 . Disrupt 2 | . . 1 1 . . Operators 1 | . . . . 1 . Fabricators . | . . . . . . Repair Stations . | . . . . . . Recycling Units . | . . . . . . Scanalyzers . | . . . . . . Garrison Access . | . . . . . . Data Cores Recovered 1 | . . . 1 . . Used . | . . . . . . Hacking Detections 20 | . 1 3 7 9 . Full Trace Events 1 | . . . 1 . . Feedback Events . | . . . . . . Feedback Blocked . | . . . . . . Robot Schematics Acquired . | . . . . . . Robots Built . | . . . . . . Authchips . | . . . . . . Time . | . . . . . . Total Robot Build Rating . | . . . . . . Part Schematics Acquired 1 | . . . . 1 . Parts Built . | . . . . . . Authchips . | . . . . . . Time . | . . . . . . Total Part Build Rating . | . . . . . . Parts Repaired 4 | . . . 2 2 . Time 179 | . . . 77 102 . Parts Recycled . | . . . . . . Recycled Matter . | . . . . . . Retrieved Matter . | . . . . . . Retrieved Components . | . . . . . . Parts Scanalyzed 1 | . . . . 1 . Part Schematics Acquired 1 | . . . . 1 . Parts Damaged . | . . . . . . Bothacking | -11 -10 -9 -9 -8 -8 ------------ Run | Scr Mat Mat Sto Mat Gar Used RIF Installer . | . . . . . . Robots Hacked . | . . . . . . Non-combat . | . . . . . . Combat . | . . . . . . Robot Hacks Applied . | . . . . . . Relay Couplers Released 5 | . . . . . 5 Machine Destruction 5 | . . . . . 5 Fabnet Peak Effective % . | . . . . . . Robots Rewired . | . . . . . . Allies Hacked . | . . . . . . Hacks Repelled . | . . . . . . Allies | -11 -10 -9 -9 -8 -8 -------- Run | Scr Mat Mat Sto Mat Gar Total Allies . | . . . . . . Largest Group . | . . . . . . Highest-Rated Group . | . . . . . . Highest-Rated Ally . | . . . . . . Total Orders . | . . . . . . Ally Attacks . | . . . . . . Total Damage . | . . . . . . Kills . | . . . . . . Allies Corrupted . | . . . . . . Allies Melted . | . . . . . . Intel | -11 -10 -9 -9 -8 -8 ------- Run | Scr Mat Mat Sto Mat Gar Robot Analysis Total 2 | . . 1 1 . . Derelict Logs Recovered . | . . . . . . Drone Launches . | . . . . . . Drone Recoveries . | . . . . . . Exploration | -11 -10 -9 -9 -8 -8 ------------- Run | Scr Mat Mat Sto Mat Gar Turns Passed 7232 | 124 653 1405 1491 3175 384 Spaces Moved 3235 | 57 290 548 710 1460 170 Core 5 | 1 . . . . 4 Treads 699 | 51 117 387 57 87 . Legs 549 | . . . . 445 104 Wheels 1982 | 5 173 161 653 928 62 Hover . | . . . . . . Flight . | . . . . . . Fastest Speed 50 | 50 130 130 130 130 116 Average Speed 166 | 152 169 195 152 161 176 Slowest Speed 550 | 160 320 320 320 320 550 Overloaded Moves . | . . . . . . Propulsion Burnouts . | . . . . . . Robots Hopped . | . . . . . . Cave-ins Triggered . | . . . . . . Exploration Rate (%) 49 | 4 43 35 92 92 29 Regions Visited 5 Branch Regions 1 Pre-discovered Areas . | . . . . . . Known Exits Taken 2 | . . 1 . 1 . Unknown Exits Taken 3 | 1 1 . 1 . . Scrap Searched . | . . . . . . Spaces Dug 29 | . . . . 26 3 Terrain Destroyed 304 | . 6 4 27 204 63 Melee 15 | . . . . 12 3 Projectile 10 | . 6 4 . . . AOE 279 | . . . 27 192 60 Terrain Rammed . | . . . . . . Walls Destroyed . | . . . . . . Machines Disabled . | . . . . . . Actions | -11 -10 -9 -9 -8 -8 --------- Run | Scr Mat Mat Sto Mat Gar Total 4371 | 79 375 714 967 2018 218 Wait 462 | . 26 19 119 298 . Move 3231 | 56 289 547 709 1460 170 Hop . | . . . . . . Pick Up 67 | 7 8 16 9 25 2 Fast Attach 41 | 7 2 3 13 14 2 Attach 26 | . 1 9 2 12 2 Detach 3 | . 1 1 . 1 . Swap 55 | . 3 7 12 25 8 Drop 64 | . 5 12 17 30 . Fire 381 | 9 39 99 78 138 18 Melee 21 | . . . . 15 6 Ram 1 | . 1 . . . . Kick . | . . . . . . Crush 1 | . . 1 . . . Escape Stasis 18 | . . . 8 . 10 Rewire . | . . . . . . Trap . | . . . . . . Miscellaneous . | . . . . . . Route ------- -11/Scrapyard -10/Materials -9/Materials (discovered 2 exits: Min / *Sto) -9/Storage -8/Materials (discovered 3 exits: [*Fac x2] / Gar) -8/Garrison History --------- Turn | Location | Event 49 | -11/Scrapyard | Discovered new exit (range 16) 125 | -11/Scrapyard | Entered Materials 320 | -10/Materials | Build established: Mutant 681 | -10/Materials | Discovered new exit (range 16) 778 | -10/Materials | Entered another Materials area 778 | -9/Materials | Evolved 2 slots: Utility x2 1485 | -9/Materials | Identified exit to Mines 1485 | -9/Materials | Identified exit to Storage 1647 | -9/Materials | Lost 3 parts (1p1u1w) 2183 | -9/Materials | Entered Storage 3082 | -9/Storage | Repaired Grenade Launcher 3143 | -9/Storage | Repaired Imp. Assault Rifle 3449 | -9/Storage | Core integrity fell below 50% 3629 | -9/Storage | Discovered new exit (range 16) 3674 | -9/Storage | Entered Materials 3674 | -8/Materials | Evolved 2 slots: Propulsion x1, Utility x1 3771 | -8/Materials | Build established: Scavenger-Mutant 4394 | -8/Materials | Repaired Imp. EM Shotgun 4574 | -8/Materials | Discovered new exit (range 15) 5273 | -8/Materials | Lost 5 parts (1p2n2w) 5746 | -8/Materials | Repaired Imp. Assault Rifle 5970 | -8/Materials | Core integrity fell below 50% 6043 | -8/Materials | Discovered new exit (range 6) 6834 | -8/Materials | Build established: Mutant 6849 | -8/Materials | Identified exit to Garrison 6849 | -8/Materials | Entered Garrison 6872 | -8/Garrison | Triggered checkpoint 7034 | -8/Garrison | Triggered checkpoint 7067 | -8/Garrison | Garrison Relay disabled 7156 | -8/Garrison | Triggered checkpoint 7156 | -8/Garrison | Triggered checkpoint 7197 | -8/Garrison | Core integrity fell below 20% 7233 | -8/Garrison | Destroyed by G-47 Trooper with Particle Gun Last Messages --------------- 07067_ Relay Coupler [Hunter] tumbles out of relay unit. 07067_ Relay Coupler [NC] tumbles out of relay unit. 07074_ Acquired Relay Coupler [Sentry]. 07079_ Acquired Relay Coupler [NC]. 07110_ The unstable cave ceiling collapses. 07156_ Beams of light sweep through the air. An alarm sounds. 07158_ Sml. Matter Pod destroyed. 07168_ Critical hit (Burn: +37). 07172_ Com. Wheel destroyed. 07174_ G-47 Trooper destroyed. 07185_ Acquired Aluminum Leg. 07188_ VSS Leg destroyed. 07190_ Acquired 20 matter. 07194_ Imp. Medium Laser destroyed. 07197_ Imp. Assault Rifle destroyed. 07202_ Imp. Titanium Leg destroyed. 07211_ G-47 Trooper suffers critical hit (Burn). 07213_ Aluminum Leg destroyed. 07215_ The unstable cave ceiling collapses. 07227_ Core Shielding destroyed. Map ----- +----------------------------------------------------+ | ?????????????????????????????????????????????????? | | ????????????????????????????####?????????????????? | | ???????????????????????????##!!##????????????????? | | ???????????????????????????#! !#????????????????? | | ???????????????????????????#!^ !#????????????????? | | ???????????????????????????### ##????????????????? | | ????????????????????????###### #?????????????????? | | ????????????????????????# # ###???????????????? | | ??????????????????????????# # ##??????????????? | | ?????????????????????####### # #??????????????? | | ?????????????????????# # # #??????????????? | | ????????????????????## # ##??????????????? | | ????????????????????# #???????????????? | | ????????????????????# ! ! #???????????????? | | ????????????????????###! ## ##???????????????? | | ?????????????????????#"" "#" ##????????????????? | | ?????????????????????######## #?????????????????? | | ???????????????????????????#" #?????????????????? | | ???????????????????????????## #?????????????????? | | ????????????????????????????# #????????######???? | | ????????????????????????????# #??????### # ##??? | | ????????????????????????????# #??????## # ##?? | | ??????????????????########### ######### #### ### | | ??????????????????# g ^^ | | ??????????????????# g ^ ! | | ??????????????????# g @ ^ = = | | ??????????????????# ################# ### #### | | ??????????????????# #???????????????# # ###??? | | ??????????????????# #???#???????????## ## ###??? | | ?????????????????## ### #????????????# ####????? | | ?????????????????# #????????????# #???????? | | ????????????####?# ####???????????? #???????? | | ????????????# # #??????????????###???????? | | ???????## ## # ##????????????????????????? | | ???????# #???????????????????????? | | ???????# % ????????????????????? | | ???????# #?????????????????? | | ???????# ## # %# ########?????????????????? | | ???????# ???# # ###????????????????????????? | | ??????????? %* ?????????????????????????? | | ????????? = #????????????????????????? | | ???????" #????????????????????????? | | ???????" #????????????????????????? | | ???????# ## ## ###????????????????????????? | | ???????# ?# ?# #??????????????????????????? | | ??????? ?? ? ??????????????????????????? | | ??????????? ? ??????????????????????????? | | ?????????? ?? ??????????????????????????? | | ?????????####"""??######?????????????????????????? | | ?????????????????????????????????????????????????? | +----------------------------------------------------+ Best States ------------- Heat Dissipation 31 Energy Generation 14 Energy Capacity 265 Matter Stores 325 Matter Capacity 350 Sight Range 16 Terrain Scan Density 10 Armor Coverage 450 Core Shielding 20 Weapon Shielding 66 Evasion (%) 55 Recoil Reduction 2 Offensive Hacking 10 Item Schematics ----------------- Imp. Sensor Array | -8/Materials | Scanalyzed Robot Schematics ------------------ None Fabricated ------------ Nothing Alien Tech Used ----------------- None Achievements -------------- None Challenges ------------ None Game ------ Seed AssaultDamperClaws Manual? 0 Play Time 01:49:22 Cumulative 43.0 hours Start 2022.07.09 @ 15:38:29 End 2022.07.09 @ 17:29:27 Sessions 3 Manual Loads 0 Difficulty Rogue Special Mode None Game No. 31 Rogue 30 Adventurer 0 Explorer 1 Win Type - Total 0 Types 0/0/0/0/0/0/0/0/0 Lore% 17 Gallery% 24 Achievement% 19 Wizard Run 0 Options --------- ASCII 0 Keyboard 0 Movement Mouse Keybinds 0 Fullscreen 1 Font 36/Terminus Map View 76x50 Tactical HUD 1 Map Filters NONE Filters NONE Steam 1 RUN: 03621544-41d2-42de-9dc1-07a6c5401684